fUSD/lending_fUSD_20240726
["ID","MTS","AMOUNT","RATE_DAILY","PERIOD"]
[333292441,1722035436742,-500.0,0.00010958,2]
[333292442,1722035436752,-500.0,0.00010958,2]
[333292443,1722035436762,-500.0,0.00010958,2]
[333292444,1722035436772,-500.0,0.00010958,2]
[333292445,1722035436782,-500.0,0.00010958,2]
[333292446,1722035436794,-500.0,0.00010958,2]
[333292447,1722035436804,-500.0,0.00010958,2]
[333292448,1722035436813,-500.0,0.00010958,2]
[333292449,1722035436823,-500.0,0.00010958,2]
[333292450,1722035436833,-609.06375033,0.00010958,2]
[333292451,1722035436842,-500.0,0.00010958,2]
[333292452,1722035436852,-500.0,0.00010958,2]
[333292453,1722035436862,-346.23137608,0.00010958,2]
[333292454,1722035436871,-500.0,0.00010958,2]
[333292455,1722035436881,-500.0,0.00010958,2]
[333292456,1722035436891,-500.0,0.00010958,2]
[333292457,1722035436901,-499.99907123,0.00010958,2]
[333292458,1722035436911,-503.43360576,0.00010958,2]
[333292459,1722035436920,-500.0,0.00010958,2]
[333292460,1722035436930,-500.0,0.00010958,2]
[333292461,1722035436940,-500.0,0.00010958,2]
[333292462,1722035436950,-500.0,0.00010958,2]
[333292463,1722035436959,-500.0,0.00010958,2]
[333292464,1722035436969,-500.0,0.00010958,2]
[333292465,1722035436979,-444.56864288,0.00010958,2]
[333292466,1722035436989,-500.0,0.00010958,2]
[333292467,1722035436999,-500.0,0.00010958,2]
[333292468,1722035437009,-500.0,0.00010958,2]
[333292469,1722035437019,-379.99986446,0.00010958,2]
[333292470,1722035437029,-500.0,0.00010958,2]
[333292471,1722035437040,-500.0,0.00010958,2]
[333292472,1722035437181,-500.0,0.00010958,2]
[333292473,1722035437217,-644.84593006,0.00010958,2]
[333292474,1722035437226,-433.47745858,0.00010958,2]
[333292475,1722035437236,-500.0,0.00010958,2]
[333292476,1722035437246,-500.0,0.00010958,2]
[333292477,1722035437256,-500.0,0.00010958,2]
[333292478,1722035437266,-500.0,0.00010958,2]
[333292479,1722035437276,-233.86415688,0.00010958,2]
[333292480,1722035437286,-500.0,0.00010958,2]
[333292481,1722035437296,-506.48578621,0.00010958,2]
[333292482,1722035437307,-500.0,0.00010958,2]
[333292483,1722035437317,-440.85,0.00010958,2]
[333292484,1722035437327,-500.0,0.00010958,2]
[333292485,1722035437337,-500.0,0.00010958,2]
[333292486,1722035437347,-500.0,0.00010958,2]
[333292487,1722035437356,-500.0,0.00010958,2]
[333292488,1722035437366,-500.0,0.00010958,2]
[333292489,1722035437376,-500.0,0.00010958,2]
[333292490,1722035437386,-209.29815931,0.00010958,2]
[333292491,1722035437396,-500.0,0.00010958,2]
[333292492,1722035437406,-544.05700988,0.00010958,2]
[333292493,1722035437416,-500.0,0.00010958,2]
[333292494,1722035437425,-500.0,0.00010958,2]
[333292495,1722035437435,-500.0,0.00010958,2]
[333292496,1722035437445,-504.08835741,0.00010958,2]
[333292497,1722035437455,-500.0,0.00010958,2]
[333292498,1722035437465,-500.0,0.00010958,2]
[333292499,1722035437474,-500.0,0.00010958,2]
[333292500,1722035437484,-500.0,0.00010958,2]
[333292501,1722035437494,-500.0,0.00010958,2]
[333292502,1722035437503,-500.0,0.00010958,2]
[333292503,1722035437513,-313.14999245,0.00010958,2]
[333292504,1722035437522,-500.0,0.00010958,2]
[333292505,1722035437532,-500.0,0.00010958,2]
[333292506,1722035437542,-503.48052593,0.00010958,2]
[333292507,1722035437551,-500.0,0.00010958,2]
[333292508,1722035437561,-500.0,0.00010958,2]
[333292509,1722035437571,-500.0,0.00010958,2]
[333292510,1722035437581,-500.0,0.00010958,2]
[333292511,1722035437591,-504.04027305,0.00010958,2]
[333292512,1722035437601,-500.0,0.00010958,2]
[333292513,1722035437615,-500.0,0.00010958,2]
[333292514,1722035437625,-500.0,0.00010958,2]
[333292515,1722035437636,-500.0,0.00010958,2]
[333292516,1722035437647,-372.96148345,0.00010958,2]
[333292517,1722035437660,-510.76031134,0.00010958,2]
[333292518,1722035437669,-500.0,0.00010958,2]
[333292519,1722035437679,-502.62672506,0.00010958,2]
[333292520,1722035437691,-364.30092613,0.00010958,2]
[333292521,1722035437701,-500.0,0.00010958,2]
[333292522,1722035437711,-503.10940845,0.00010958,2]
[333292523,1722035437720,-500.0,0.00010958,2]
[333292524,1722035437730,-500.0,0.00010958,2]
[333292525,1722035437740,-500.0,0.00010958,2]
[333292526,1722035437749,-500.0,0.00010958,2]
[333292527,1722035437759,-500.0,0.00010958,2]
[333292528,1722035437768,-500.0,0.00010958,2]
[333292529,1722035437777,-506.20265541,0.00010958,2]
[333292530,1722035437787,-500.0,0.00010958,2]
[333292531,1722035437797,-468.47613967,0.00010958,2]
[333292532,1722035437807,-500.0,0.00010958,2]
[333292533,1722035437817,-600.48,0.00010958,2]
[333292534,1722035437826,-500.0,0.00010958,2]
[333292535,1722035437837,-163.33779536,0.00010958,2]
[333292536,1722035437848,-500.0,0.00010958,2]
[333292539,1722035437858,-500.0,0.00010958,2]
[333292540,1722035437868,-500.0,0.00010958,2]
[333292541,1722035437878,-623.54,0.00010958,2]
[333292542,1722035437888,-500.0,0.00010958,2]
[333292543,1722035437898,-500.0,0.00010958,2]
[333292545,1722035437907,-502.56735424,0.00010958,2]
[333292546,1722035437917,-500.0,0.00010958,2]
[333292547,1722035437926,-543.11,0.00010958,2]
[333292548,1722035437936,-500.0,0.00010958,2]
[333292549,1722035437946,-500.0,0.00010958,2]
[333292550,1722035437956,-500.0,0.00010958,2]
[333292551,1722035437965,-220.78,0.00010958,2]
[333292552,1722035437975,-220.55633939,0.00010958,2]
[333292553,1722035437984,-512.93262454,0.00010958,2]
[333292554,1722035437994,-500.0,0.00010958,2]
[333292555,1722035438003,-500.0,0.00010958,2]
[333292556,1722035438014,-421.29,0.00010958,2]
[333292557,1722035438024,-504.19599589,0.00010958,2]
[333292558,1722035438034,-500.0,0.00010958,2]
[333292559,1722035438043,-500.0,0.00010958,2]
[333292560,1722035438053,-521.23227712,0.00010958,2]
[333292561,1722035438062,-486.03872034,0.00010958,2]
[333292562,1722035438072,-500.0,0.00010958,2]
[333292563,1722035438082,-161.40498938,0.00010958,2]
[333292564,1722035438091,-496.34695543,0.00010958,2]
[333292565,1722035438101,-500.0,0.00010958,2]
[333292566,1722035438111,-500.0,0.00010958,2]
[333292567,1722035438120,-500.0,0.00010958,2]
[333292568,1722035438130,-500.0,0.00010958,2]
[333292569,1722035438140,-500.0,0.00010958,2]
[333292570,1722035438149,-500.0,0.00010958,2]
[333292571,1722035438160,-500.0,0.00010958,2]
[333292572,1722035438170,-500.0,0.00010958,2]
[333292573,1722035438180,-500.0,0.00010958,2]
[333292574,1722035438190,-500.0,0.00010958,2]
[333292575,1722035438199,-500.0,0.00010958,2]
[333292576,1722035438209,-500.0,0.00010958,2]
[333292577,1722035438219,-500.0,0.00010958,2]
[333292578,1722035438229,-500.0,0.00010958,2]
[333292579,1722035438239,-502.35566403,0.00010958,2]
[333292580,1722035438249,-507.4,0.00010958,2]
[333292581,1722035438259,-339.83184046,0.00010958,2]
[333292582,1722035438268,-500.0,0.00010958,2]
[333292583,1722035438279,-270.21,0.00010958,2]
[333292584,1722035438289,-500.0,0.00010958,2]
[333292585,1722035438299,-500.0,0.00010958,2]
[333292586,1722035438309,-477.1,0.00010958,2]
[333292587,1722035438319,-500.0,0.00010958,2]
[333292588,1722035438329,-500.0,0.00010958,2]
[333292589,1722035438339,-500.0,0.00010958,2]
[333292590,1722035438348,-500.0,0.00010958,2]
[333292591,1722035438358,-500.0,0.00010958,2]
[333292592,1722035438369,-512.40500123,0.00010958,2]
[333292593,1722035438379,-247.97456707,0.00010958,2]
[333292594,1722035438390,-339.68973934,0.00010958,2]
[333292595,1722035438400,-500.0,0.00010958,2]
[333292596,1722035438410,-292.24,0.00010958,2]
[333292597,1722035438420,-500.0,0.00010958,2]
[333292598,1722035438430,-500.0,0.00010958,2]
[333292599,1722035438440,-500.0,0.00010958,2]
[333292600,1722035438450,-209.12,0.00010958,2]
[333292601,1722035438460,-500.61876245,0.00010958,2]
[333292602,1722035438470,-500.0,0.00010958,2]
[333292603,1722035438480,-500.0,0.00010958,2]
[333292604,1722035438490,-500.0,0.00010958,2]
[333292605,1722035438500,-500.0,0.00010958,2]
[333292606,1722035438510,-791.39,0.00010958,2]
[333292607,1722035438519,-791.39,0.00010958,2]
[333292608,1722035438529,-507.43647486,0.00010958,2]
[333292609,1722035438539,-500.0,0.00010958,2]
[333292610,1722035438549,-500.0,0.00010958,2]
[333292611,1722035438559,-554.25431521,0.00010958,2]
[333292612,1722035438568,-505.38631221,0.00010958,2]
[333292613,1722035438578,-504.81396216,0.00010958,2]
[333292614,1722035438588,-500.0,0.00010958,2]
[333292615,1722035438598,-505.25336076,0.00010958,2]
[333292616,1722035438612,-604.42705766,0.00010958,2]
[333292617,1722035438621,-500.0,0.00010958,2]
[333292618,1722035438632,-500.0,0.00010958,2]
[333292619,1722035438641,-500.0,0.00010958,2]
[333292620,1722035438653,-500.0,0.00010958,2]
[333292621,1722035438663,-500.0,0.00010958,2]
[333292622,1722035438673,-515.69548002,0.00010958,2]
[333292623,1722035438684,-500.0,0.00010958,2]
[333292624,1722035438695,-500.0,0.00010958,2]
[333292625,1722035438705,-500.0,0.00010958,2]
[333292626,1722035438715,-500.0,0.00010958,2]
[333292627,1722035438725,-500.0,0.00010958,2]
[333292628,1722035438734,-500.0,0.00010958,2]
[333292629,1722035438743,-500.0,0.00010958,2]
[333292630,1722035438753,-500.0,0.00010958,2]
[333292631,1722035438763,-500.0,0.00010958,2]
[333292632,1722035438773,-568.11211069,0.00010958,2]
[333292633,1722035438783,-534.93394803,0.00010958,2]
[333292634,1722035438792,-620.0,0.00010958,2]
[333292635,1722035438802,-812.37,0.00010958,2]
[333292636,1722035438811,-500.0,0.00010958,2]
[333292637,1722035438821,-250.0,0.00010959,2]
[333292638,1722035438831,-150.0,0.00010959,2]
[333292639,1722035438841,-7011.47,0.00010959,2]
[333292640,1722035438850,-459.6,0.00010959,2]
[333292641,1722035438860,-383.0,0.00010959,2]
[333292642,1722035438870,-319.17,0.00010959,2]
[333292643,1722035438880,-150.0,0.00010972,2]
[333292644,1722035438890,-500.0,0.00010995,2]
[333292645,1722035438899,-500.0,0.00010995,2]
[333292646,1722035438909,-500.0,0.00010995,2]
[333292647,1722035438919,-500.0,0.00010995,2]
[333292648,1722035438929,-500.0,0.00010995,2]
[333292649,1722035438939,-500.0,0.00010995,2]
[333292650,1722035438949,-500.0,0.00010995,2]
[333292651,1722035438958,-500.0,0.00010995,2]
[333292652,1722035438968,-500.0,0.00010995,2]
[333292653,1722035438978,-500.0,0.00010995,2]
[333292654,1722035438988,-500.0,0.00010995,2]
[333292655,1722035438998,-500.0,0.00010995,2]
[333292656,1722035439008,-853.8,0.00010995,2]
[333292657,1722035439017,-500.0,0.00010995,2]
[333292658,1722035439027,-500.0,0.00010995,2]
[333292659,1722035439037,-500.0,0.00010995,2]
[333292660,1722035439047,-500.0,0.00010995,2]
[333292661,1722035439057,-259.1600139,0.00010995,2]
[333292662,1722035439066,-561.69206606,0.00010995,2]
[333292663,1722035439076,-500.0,0.00010995,2]
[333292664,1722035439086,-542.27313765,0.00010995,2]
[333292665,1722035439095,-561.81,0.00010995,2]
[333292666,1722035439104,-500.0,0.00010995,2]
[333292667,1722035439114,-500.0,0.00010995,2]
[333292668,1722035439123,-500.0,0.00010995,2]
[333292669,1722035439133,-180.3,0.00010995,2]
[333292670,1722035439143,-318.07920896,0.00010995,2]
[333292671,1722035439152,-500.0,0.00010995,2]
[333292672,1722035439162,-500.0,0.00010995,2]
[333292673,1722035439171,-500.0,0.00010995,2]
[333292674,1722035439181,-500.0,0.00010995,2]
[333292675,1722035439190,-500.0,0.00010995,2]
[333292676,1722035439200,-335.73655868,0.00010995,2]
[333292677,1722035439209,-1511.9997512,0.00010995,2]
[333292678,1722035439219,-2486.6697793,0.00010995,2]
[333292679,1722035439228,-500.0,0.00010996,2]
[333292680,1722035439238,-500.0,0.00010996,2]
[333292681,1722035439248,-500.0,0.00010996,2]
[333292682,1722035439257,-500.0,0.00010996,2]
[333292683,1722035439267,-512.0378227,0.00010996,2]
[333292684,1722035439277,-283.66,0.00010996,2]
[333292685,1722035439287,-500.0,0.00010996,2]
[333292686,1722035439297,-500.0,0.00010996,2]
[333292687,1722035439307,-500.0,0.00010996,2]
[333292688,1722035439316,-700.44,0.00010996,2]
[333292689,1722035439325,-500.0,0.00010996,2]
[333292690,1722035439335,-500.0,0.00010996,2]
[333292691,1722035439344,-500.0,0.00010996,2]
[333292692,1722035439354,-443.58479324,0.00010996,2]
[333292693,1722035439363,-500.0,0.00010996,2]
[333292694,1722035439375,-539.42888683,0.00010996,2]
[333292695,1722035439384,-500.0,0.00010996,2]
[333292696,1722035439394,-447.77224441,0.00010996,2]
[333292697,1722035439405,-500.0,0.00010996,2]
[333292698,1722035439417,-500.0,0.00010996,2]
[333292699,1722035439427,-500.0,0.00010996,2]
[333292700,1722035439437,-500.0,0.00010996,2]
[333292701,1722035439447,-500.0,0.00010996,2]
[333292702,1722035439458,-500.0,0.00010996,2]
[333292703,1722035439470,-500.0,0.00010996,2]
[333292704,1722035439480,-518.49,0.00010996,2]
[333292705,1722035439492,-500.0,0.00010996,2]
[333292706,1722035439503,-500.0,0.00010996,2]
[333292707,1722035439513,-500.0,0.00010996,2]
[333292708,1722035439522,-500.0,0.00010996,2]
[333292709,1722035439532,-500.0,0.00010996,2]
[333292710,1722035439543,-500.0,0.00010996,2]
[333292711,1722035439553,-505.89804411,0.00010996,2]
[333292712,1722035439566,-356.06629839,0.00010996,2]
[333292713,1722035439576,-500.0,0.00010996,2]
[333292714,1722035439586,-500.0,0.00010996,2]
[333292715,1722035439595,-500.0,0.00010996,2]
[333292716,1722035439609,-500.0,0.00010996,2]
[333292717,1722035439618,-500.0,0.00010996,2]
[333292718,1722035439628,-500.0,0.00010996,2]
[333292719,1722035439637,-500.0,0.00010996,2]
[333292720,1722035439647,-500.0,0.00010996,2]
[333292721,1722035439656,-500.0,0.00010996,2]
[333292722,1722035439666,-500.0,0.00010996,2]
[333292723,1722035439675,-500.0,0.00010996,2]
[333292724,1722035439727,-500.0,0.00010996,2]
[333292725,1722035439737,-500.0,0.00010996,2]
[333292726,1722035439746,-500.0,0.00010996,2]
[333292727,1722035439756,-500.0,0.00010996,2]
[333292728,1722035439765,-500.0,0.00010996,2]
[333292729,1722035439775,-500.0,0.00010996,2]
[333292730,1722035439786,-500.0,0.00010996,2]
[333292731,1722035439796,-500.0,0.00010996,2]
[333292732,1722035439806,-500.0,0.00010996,2]
[333292733,1722035439815,-500.0,0.00010996,2]
[333292734,1722035439824,-500.0,0.00010996,2]
[333292735,1722035439834,-500.0,0.00010996,2]
[333292736,1722035439844,-500.0,0.00010996,2]
[333292737,1722035439853,-500.0,0.00010996,2]
[333292738,1722035439863,-554.68,0.00010996,2]
[333292739,1722035439873,-500.0,0.00010996,2]
[333292740,1722035439882,-1187.83,0.00010996,2]
[333292741,1722035439892,-500.0,0.00010996,2]
[333292742,1722035439901,-500.0,0.00010996,2]
[333292743,1722035439910,-500.0,0.00010996,2]
[333292744,1722035439919,-500.0,0.00010996,2]
[333292745,1722035439928,-500.0,0.00010996,2]
[333292746,1722035439937,-500.0,0.00010996,2]
[333292747,1722035439947,-500.0,0.00010996,2]
[333292748,1722035439956,-500.0,0.00010996,2]
[333292749,1722035439965,-500.0,0.00010996,2]
[333292750,1722035439974,-500.0,0.00010996,2]
[333292751,1722035439983,-500.0,0.00010996,2]
[333292752,1722035439992,-500.0,0.00010996,2]
[333292754,1722035440001,-500.0,0.00010996,2]
[333292756,1722035440010,-500.0,0.00010996,2]
[333292757,1722035440020,-500.0,0.00010996,2]
[333292758,1722035440029,-500.0,0.00010996,2]
[333292759,1722035440038,-500.0,0.00010996,2]
[333292760,1722035440048,-500.0,0.00010996,2]
[333292761,1722035440057,-500.0,0.00010996,2]
[333292762,1722035440066,-500.0,0.00010996,2]
[333292763,1722035440075,-502.84462897,0.00010996,2]
[333292765,1722035440084,-500.0,0.00010996,2]
[333292766,1722035440093,-500.0,0.00010996,2]
[333292768,1722035440103,-500.0,0.00010996,2]
[333292769,1722035440112,-500.0,0.00010996,2]
[333292770,1722035440121,-500.0,0.00010996,2]
[333292771,1722035440131,-500.0,0.00010996,2]
[333292772,1722035440144,-521.4434326,0.00010996,2]
[333292773,1722035440154,-614.48,0.00010996,2]
[333292774,1722035440164,-500.0,0.00010996,2]
[333292775,1722035440176,-500.0,0.00010996,2]
[333292776,1722035440187,-500.0,0.00010996,2]
[333292777,1722035440197,-501.0,0.00010997,2]
[333292778,1722035440206,-500.0,0.00010997,2]
[333292779,1722035440216,-212.76609148,0.00010997,2]
[333292780,1722035440226,-500.0,0.00010997,2]
[333292781,1722035440236,-500.0,0.00010997,2]
[333292782,1722035440246,-500.0,0.00010997,2]
[333292783,1722035440255,-500.0,0.00010997,2]
[333292784,1722035440265,-500.0,0.00010997,2]
[333292785,1722035440274,-490.79069143,0.00010997,2]
[333292786,1722035440286,-500.0,0.00010997,2]
[333292787,1722035440296,-378.67370573,0.00010997,2]
[333292788,1722035440305,-500.0,0.00010997,2]
[333292789,1722035440315,-503.31871512,0.00010997,2]
[333292790,1722035440324,-500.0,0.00010997,2]
[333292791,1722035440333,-500.0,0.00010997,2]
[333292792,1722035440342,-174.4482426,0.00010997,2]
[333292793,1722035440351,-504.93076037,0.00010997,2]
[333292794,1722035440361,-502.870478,0.00010997,2]
[333292795,1722035440370,-503.6733931,0.00010997,2]
[333292796,1722035440380,-500.0,0.00010997,2]
[333292797,1722035440390,-500.0,0.00010997,2]
[333292798,1722035440399,-203.23793192,0.00010997,2]
[333292799,1722035440409,-630.69,0.00010997,2]
[333292800,1722035440419,-500.0,0.00010997,2]
[333292801,1722035440430,-500.0,0.00010997,2]
[333292802,1722035440440,-259.18,0.00010997,2]
[333292803,1722035440450,-502.82157003,0.00010997,2]
[333292804,1722035440460,-500.0,0.00010997,2]
[333292805,1722035440471,-503.19136444,0.00010997,2]
[333292806,1722035440481,-500.0,0.00010997,2]
[333292807,1722035440491,-502.30986701,0.00010997,2]
[333292808,1722035440500,-505.91522013,0.00010997,2]
[333292809,1722035440510,-500.0,0.00010997,2]
[333292810,1722035440519,-607.57,0.00010997,2]
[333292811,1722035440528,-500.0,0.00010997,2]
[333292812,1722035440539,-500.0,0.00010997,2]
[333292813,1722035440548,-500.0,0.00010997,2]
[333292814,1722035440558,-371.48496575,0.00010997,2]
[333292815,1722035440567,-500.0,0.00010997,2]
[333292816,1722035440576,-500.0,0.00010997,2]
[333292817,1722035440586,-502.76192055,0.00010997,2]
[333292818,1722035440595,-501.7471754,0.00010997,2]
[333292819,1722035440608,-500.0,0.00010997,2]
[333292820,1722035440617,-503.2705708,0.00010997,2]
[333292821,1722035440626,-503.36792937,0.00010997,2]
[333292822,1722035440636,-500.0,0.00010997,2]
[333292823,1722035440646,-503.98054188,0.00010997,2]
[333292824,1722035440657,-505.66259635,0.00010997,2]
[333292825,1722035440666,-500.0,0.00010997,2]
[333292826,1722035440675,-500.0,0.00010997,2]
[333292827,1722035440687,-501.53273412,0.00010997,2]
[333292828,1722035440697,-498.74993416,0.00010997,2]
[333292829,1722035440707,-500.0,0.00010997,2]
[333292830,1722035440716,-265.10030444,0.00010997,2]
[333292831,1722035440726,-580.23,0.00010997,2]
[333292832,1722035440736,-500.0,0.00010997,2]
[333292833,1722035440746,-502.7445966,0.00010997,2]
[333292834,1722035440755,-501.37495817,0.00010997,2]
[333292835,1722035440765,-502.26563501,0.00010997,2]
[333292836,1722035440775,-500.0,0.00010997,2]
[333292837,1722035440785,-500.0,0.00010997,2]
[333292838,1722035440794,-500.0,0.00010997,2]
[333292839,1722035440804,-206.90932892,0.00010997,2]
[333292840,1722035440813,-501.53025865,0.00010997,2]
[333292841,1722035440823,-506.91905753,0.00010997,2]
[333292842,1722035440832,-505.29616718,0.00010997,2]
[333292843,1722035440842,-500.0,0.00010997,2]
[333292844,1722035440853,-500.0,0.00010997,2]
[333292845,1722035440862,-189.06,0.00010997,2]
[333292846,1722035440872,-500.0,0.00010997,2]
[333292847,1722035440882,-466.13299094,0.00010997,2]
[333292848,1722035440894,-507.27513597,0.00010997,2]
[333292849,1722035440904,-505.65213741,0.00010997,2]
[333292850,1722035440915,-501.39709936,0.00010997,2]
[333292851,1722035440925,-467.98326394,0.00010997,2]
[333292852,1722035440934,-500.0,0.00010997,2]
[333292853,1722035440944,-501.87426082,0.00010997,2]
[333292854,1722035440953,-505.0660456,0.00010997,2]
[333292855,1722035440963,-500.60661657,0.00010997,2]
[333292856,1722035440972,-502.32032787,0.00010997,2]
[333292857,1722035440982,-500.81125629,0.00010997,2]
[333292858,1722035440991,-506.07280844,0.00010997,2]
[333292859,1722035441001,-506.30513419,0.00010997,2]
[333292860,1722035441012,-500.0,0.00010997,2]
[333292861,1722035441023,-500.0,0.00010997,2]
[333292862,1722035441033,-500.0,0.00010997,2]
[333292863,1722035441043,-500.0,0.00010997,2]
[333292864,1722035441052,-500.0,0.00010997,2]
[333292865,1722035441061,-500.0,0.00010997,2]
[333292866,1722035441070,-500.0,0.00010997,2]
[333292867,1722035441079,-594.54,0.00010997,2]
[333292868,1722035441089,-508.15159995,0.00010997,2]
[333292869,1722035441098,-501.11662307,0.00010997,2]
[333292870,1722035441107,-500.0,0.00010997,2]
[333292871,1722035441117,-220.52,0.00010997,2]
[333292872,1722035441126,-500.0,0.00010997,2]
[333292873,1722035441136,-500.0,0.00010997,2]
[333292874,1722035441145,-189.37,0.00010997,2]
[333292875,1722035441157,-500.0,0.00010997,2]
[333292876,1722035441166,-500.0,0.00010997,2]
[333292877,1722035441176,-500.91380832,0.00010997,2]
[333292878,1722035441186,-502.26894618,0.00010997,2]
[333292879,1722035441198,-501.56011437,0.00010997,2]
[333292880,1722035441208,-500.0,0.00010997,2]
[333292881,1722035441218,-500.0,0.00010997,2]
[333292882,1722035441229,-534.00266688,0.00010997,2]
[333292883,1722035441238,-500.88669518,0.00010997,2]
[333292884,1722035441247,-501.11052891,0.00010997,2]
[333292885,1722035441256,-501.4939421,0.00010997,2]
[333292886,1722035441265,-501.48482883,0.00010997,2]
[333292887,1722035441275,-503.54552134,0.00010997,2]
[333292888,1722035441286,-369.62121745,0.00010997,2]
[333292889,1722035441295,-501.4408559,0.00010997,2]
[333292890,1722035441305,-500.0,0.00010997,2]
[333292891,1722035441315,-501.52496459,0.00010997,2]
[333292892,1722035441324,-500.0,0.00010997,2]
[333292893,1722035441334,-500.0,0.00010997,2]
[333292894,1722035441343,-500.0,0.00010997,2]
[333292895,1722035441355,-500.0,0.00010997,2]
[333292896,1722035441364,-500.0,0.00010997,2]
[333292897,1722035441375,-500.92069951,0.00010997,2]
[333292898,1722035441385,-500.0,0.00010997,2]
[333292899,1722035441396,-500.0,0.00010997,2]
[333292900,1722035441405,-500.0,0.00010997,2]
[333292901,1722035441415,-500.97948064,0.00010997,2]
[333292902,1722035441425,-503.34459652,0.00010997,2]
[333292903,1722035441434,-501.92602002,0.00010997,2]
[333292904,1722035441443,-500.53811182,0.00010997,2]
[333292905,1722035441452,-331.93071663,0.00010997,2]
[333292906,1722035441462,-500.0,0.00010997,2]
[333292907,1722035441471,-500.0,0.00010997,2]
[333292908,1722035441481,-633.87550001,0.00010997,2]
[333292909,1722035441490,-501.26943874,0.00010997,2]
[333292910,1722035441499,-425.30691126,0.00010997,2]
[333292911,1722035441509,-508.97996433,0.00010997,2]
[333292912,1722035441519,-500.0,0.00010997,2]
[333292913,1722035441529,-511.2506575,0.00010997,2]
[333292914,1722035441540,-502.47570986,0.00010997,2]
[333292915,1722035441549,-500.0,0.00010997,2]
[333292916,1722035441559,-500.0,0.00010997,2]
[333292917,1722035441568,-500.0,0.00010997,2]
[333292918,1722035441577,-500.0,0.00010997,2]
[333292919,1722035441588,-500.0,0.00010997,2]
[333292920,1722035441597,-500.0,0.00010997,2]
[333292921,1722035441610,-501.18671249,0.00010997,2]
[333292922,1722035441620,-700.44,0.00010997,2]
[333292923,1722035441629,-700.44,0.00010997,2]
[333292924,1722035441639,-700.44,0.00010997,2]
[333292925,1722035441649,-700.44,0.00010997,2]
[333292926,1722035441659,-500.0,0.00010997,2]
[333292927,1722035441668,-500.0,0.00010997,2]
[333292928,1722035441679,-500.0,0.00010997,2]
[333292929,1722035441691,-500.0,0.00010997,2]
[333292930,1722035441701,-500.44476032,0.00010997,2]
[333292931,1722035441711,-500.59858888,0.00010997,2]
[333292932,1722035441721,-500.0,0.00010997,2]
[333292933,1722035441730,-200.17955014,0.00010997,2]
[333292934,1722035441740,-500.0,0.00010997,2]
[333292935,1722035441750,-500.0,0.00010997,2]
[333292936,1722035441760,-501.0287792,0.00010997,2]
[333292937,1722035441770,-500.59530013,0.00010997,2]
[333292938,1722035441780,-333.88329785,0.00010997,2]
[333292939,1722035441791,-500.0,0.00010997,2]
[333292940,1722035441800,-500.0,0.00010997,2]
[333292941,1722035441809,-506.65557198,0.00010997,2]
[333292942,1722035441820,-500.0,0.00010997,2]
[333292943,1722035441830,-553.17,0.00010997,2]
[333292944,1722035441840,-503.30734893,0.00010997,2]
[333292945,1722035441849,-500.7888882,0.00010997,2]
[333292946,1722035441859,-501.01107101,0.00010997,2]
[333292947,1722035441868,-500.0,0.00010997,2]